{"text_format":"3","workbook":"xlsx","n_sheets":1,"sheets":["EFE"],"not_rendered":{"defined_names":1},"read":"whole","date_system":"1900"}

{"sheet":"EFE","index":0,"n_rows":68,"n_cols":3,"rows_kept":68,"merged":[[0,0,0,2],[67,0,67,2]]}
["Instituto Municipal de Planeación de Irapuato, Gto.\nEstado de Flujos de Efectivo\nDel 1 de Enero al 31 de Diciembre de 2025\n(Cifras en Pesos)"]
["Concepto",2025,2024]
["Flujos de Efectivo de las Actividades de Operación"]
["Origen",{"$f":"SUM(B5:B14)","v":{"v":29060264.790000003,"d":"29,060,265"}},{"$f":"SUM(C5:C14)","v":{"v":17450895.01,"d":"17,450,895"}}]
["Impuestos",0,0]
["Cuotas y Aportaciones de Seguridad Social",0,0]
["Contribuciones de Mejoras",0,0]
["Derechos",0,0]
["Productos",{"v":0.37,"d":"0"},0]
["Aprovechamientos",0,0]
["Ingresos por Venta de Bienes y Prestación de Servicios",0,0]
["Participaciones, Aportaciones, Convenios, Incentivos Derivados de la Colaboración Fiscal y Fondos Distintos de Aportaciones",0,0]
["Transferencias, Asignaciones, Subsidios y Subvenciones, y Pensiones y Jubilaciones",{"v":29060264.42,"d":"29,060,264"},{"v":17450895.01,"d":"17,450,895"}]
["Otros Orígenes de Operación",0,0]
[]
["Aplicación",{"$f":"SUM(B17:B32)","v":{"v":22521574.11,"d":"22,521,574"}},{"$f":"SUM(C17:C32)","v":{"v":9053575.17,"d":"9,053,575"}}]
["Servicios Personales",{"v":7980085.88,"d":"7,980,086"},{"v":5781643.33,"d":"5,781,643"}]
["Materiales y Suministros",{"v":313609.32,"d":"313,609"},{"v":185824.61,"d":"185,825"}]
["Servicios Generales",{"v":14227878.91,"d":"14,227,879"},{"v":3086107.23,"d":"3,086,107"}]
["Transferencias Internas y Asignaciones al Sector Público",0,0]
["Transferencias al Resto del Sector Público",0,0]
["Subsidios y Subvenciones",0,0]
["Ayudas Sociales",0,0]
["Pensiones y Jubilaciones",0,0]
["Transferencias a Fideicomisos, Mandatos y Contratos Análogos",0,0]
["Transferencias a la Seguridad Social",0,0]
["Donativos",0,0]
["Transferencias al Exterior",0,0]
["Participaciones",0,0]
["Aportaciones",0,0]
["Convenios",0,0]
["Otras Aplicaciones de Operación",0,0]
["Flujos Netos de Efectivo por Actividades de Operación",{"$f":"B4-B16","v":{"v":6538690.680000003,"d":"6,538,691"}},{"$f":"C4-C16","v":{"v":8397319.840000002,"d":"8,397,320"}}]
[]
["Flujos de Efectivo de las Actividades de Inversión"]
["Origen",{"$f":"SUM(B37:B39)","v":0},{"$f":"SUM(C37:C39)","v":0}]
["Bienes Inmuebles, Infraestructura y Construcciones en Proceso",0,0]
["Bienes Muebles",0,0]
["Otros Orígenes de Inversión",0,0]
[]
["Aplicación",{"$f":"SUM(B42:B44)","v":{"v":908844.75,"d":"908,845"}},{"$f":"SUM(C42:C44)","v":{"v":921075.83,"d":"921,076"}}]
["Bienes Inmuebles, Infraestructura y Construcciones en Proceso",0,0]
["Bienes Muebles",{"v":908844.75,"d":"908,845"},{"v":921075.83,"d":"921,076"}]
["Otras Aplicaciones de Inversión",0,0]
["Flujos Netos de Efectivo por Actividades de Inversión",{"$f":"B36-B41","v":{"v":-908844.75,"d":"-908,845"}},{"$f":"C36-C41","v":{"v":-921075.83,"d":"-921,076"}}]
[]
["Flujos de Efectivo de las Actividades de Financiamiento"]
["Origen",{"$f":"SUM(B49+B52)","v":0},{"$f":"SUM(C49+C52)","v":0}]
["Endeudamiento Neto",{"$f":"B50+B51","v":0},{"$f":"C50+C51","v":0}]
["Interno",0,0]
["Externo",0,0]
["Otros Orígenes de Financiamiento",0,0]
[]
["Aplicación",{"$f":"SUM(B55+B58)","v":{"v":4086804.47,"d":"4,086,804"}},{"$f":"SUM(C55+C58)","v":{"v":259079,"d":"259,079"}}]
["Servicios de la Deuda",{"$f":"SUM(B56+B57)","v":0},{"$f":"SUM(C56+C57)","v":0}]
["Interno",0,0]
["Externo",0,0]
["Otras Aplicaciones de Financiamiento",{"v":4086804.47,"d":"4,086,804"},{"v":259079,"d":"259,079"}]
["Flujos Netos de Efectivo por Actividades de Financiamiento",{"$f":"B48-B54","v":{"v":-4086804.47,"d":"-4,086,804"}},{"$f":"C48-C54","v":{"v":-259079,"d":"-259,079"}}]
[]
["Incremento/Disminución Neta en el Efectivo y Equivalentes al Efectivo",{"$f":"B59+B45+B33","v":{"v":1543041.4600000028,"d":"1,543,041"}},{"$f":"C59+C45+C33","v":{"v":7217165.010000002,"d":"7,217,165"}}]
[]
["Efectivo y Equivalentes al Efectivo al Inicio del Ejercicio",{"v":8480863.430000002,"d":"8,480,863"},{"v":1263698.42,"d":"1,263,698"}]
[]
["Efectivo y Equivalentes al Efectivo al Final del Ejercicio",{"$f":"+B61+B63","v":{"v":10023904.890000004,"d":"10,023,905"}},{"$f":"+C61+C63","v":{"v":8480863.430000002,"d":"8,480,863"}}]
[]
[]
["Bajo protesta de decir verdad declaramos que los Estados Financieros y sus notas, son razonablemente correctos y son responsabilidad del emisor."]